Cogmind - Beta 11.1 @@@ ROGUE MODE // 2022.09.05 @ 00:42:19 Player: Okkudo Result: Destroyed by Y-45 Defender with Heavy Assault Rifle Performance ------------- Evolutions (1) 500 Regions Visited (2) 400 Robots Destroyed (27) 135 Value Destroyed (627) 627 Prototype IDs (4) 80 Alien Tech Used (0) 0 Bonus (0) 0 TOTAL SCORE: 1742 Bonus ------- None Cogmind --------- Core Integrity 0/400 Matter 285/300 Energy 100/100 System Corruption 3% Temperature Cool (9) Movement Core (250) Ox4 Location -9/Materials Parts ------- > --- POWER (1) -------- (None) > --- PROPULSION (2) --- (None) > --- UTILITY (4) ------ Medium Storage Unit > --- WEAPON (2) ------- Advanced Beam Cannon > --- INVENTORY (10) --- Aluminum Leg Compact Wheel Hacking Suite EM Shotgun Datajack Mining Laser Peak State ------------ > --- POWER ------------ Light Ion Engine > --- PROPULSION ------- Aluminum Leg Aluminum Leg > --- UTILITY ---------- Small Storage Unit Large Matter Pod Light Armor Plating > --- WEAPON ----------- Improved Medium Laser Advanced Beam Cannon > --- INVENTORY -------- Aluminum Leg Compact Wheel Medium Storage Unit Hacking Suite Small Laser Light Assault Rifle Datajack Mining Laser [Rating: 13] Favorites ----------- Power Ion Engine Engine Ion Engine Propulsion Aluminum Leg Leg Aluminum Leg Wheel Compact Wheel Utility Small Storage Unit Storage Small Storage Unit Protection Light Armor Plating Weapon Assault Rifle Energy Gun Improved Medium Laser Energy Cannon Advanced Beam Cannon Ballistic Gun Assault Rifle Build | -11 -10 -9 ------- Run | Scr Mat Mat Slots Evolved 2 | . . 2 Power . | . . . Propulsion . | . . . Utility 2 | . . 2 Weapon . | . . . Parts Attached 26 | 6 1 19 Power 4 | 1 . 3 Engine 4 | 1 . 3 Core . | . . . Reactor . | . . . Propulsion 6 | 2 . 4 Treads . | . . . Leg 5 | 2 . 3 Wheel 1 | . . 1 Hover . | . . . Flight . | . . . Utility 4 | 1 . 3 Device . | . . . Storage 3 | 1 . 2 Processor . | . . . Hackware . | . . . Protection 1 | . . 1 Artifact . | . . . Weapon 12 | 2 1 9 Energy Gun 5 | 1 . 4 Energy Cannon 2 | . . 2 Ballistic Gun 5 | 1 1 3 Ballistic Cannon . | . . . Launcher . | . . . Special Weapon . | . . . Impact Weapon . | . . . Slashing Weapon . | . . . Piercing Weapon . | . . . Special Melee Weapon . | . . . Unidentified Prototypes 4 | . . 4 Parts Lost 15 | . . 15 Power 2 | . . 2 Propulsion 4 | . . 4 Utility 2 | . . 2 Weapon 7 | . . 7 Highest Loss Streak 7 | . . 7 To Critical Strikes . | . . . Average Slot Usage (%) 73 | . 85 70 Engine 9 | . 14 7 Leg 19 | . 28 16 Storage 18 | . 14 19 Protection 3 | . . 4 Energy Gun 8 | . 10 8 Energy Cannon 3 | . . 4 Ballistic Gun 10 | . 17 8 Naked Turns . | . . . Heaviest Build 23 | 14 14 23 Greatest Support 20 | 20 20 20 Greatest Overweight (x) 5 | 1 . 5 Average Overweight (x) . | . . 1 Largest Inventory Capacity 10 | 8 8 10 Average Capacity 8 | 7 8 8 Most Carried 8 | 5 7 8 Average Carried 5 | 1 4 6 Final Capacity 10 | 8 8 10 Final Carried 6 | 2 6 6 Class Distribution -------------------- 87% | Mutant 12% | Scavenger-Mutant Dominant Class ---------------- Mutant | -10/Materials Mutant | -9/Materials Resources | -11 -10 -9 ----------- Run | Scr Mat Mat Matter Collected 678 | 266 88 324 Remotely . | . . . Salvage Created 982 | 88 65 829 Parts 70 | 1 10 59 Haulers Intercepted 2 | . . 2 Recyclers Shooed 1 | . . 1 Parts Field Recycled . | . . . Retrieved Matter . | . . . Parts Self-Destructed . | . . . Prevented . | . . . Kills | -11 -10 -9 ------- Run | Scr Mat Mat Combat Hostiles Destroyed 20 | . . 20 Guns 18 | . . 18 Cannons 2 | . . 2 Classes Destroyed 9 | 1 3 5 Worker 2 | . 1 1 Tunneler 1 | . 1 . Hauler 2 | . . 2 Recycler 1 | 1 . . Operator 1 | . 1 . Swarmer 6 | . . 6 Grunt 9 | . . 9 Brawler 1 | . . 1 Sentry 4 | . . 4 Best Kill Streak 10 | 1 3 10 Combat Bots Only 10 | . . 10 Max Kills in Single Turn 1 | 1 1 1 Gunslinging . | . . . Exploded . | . . . Melee . | . . . Uniques/NPCs Destroyed . | . . . Combat | -11 -10 -9 -------- Run | Scr Mat Mat Damage Taken 1965 | . 66 1899 Core 407 | . . 407 Absorbed by Shields . | . . . Core Remaining (%) 100 | 100 100 . Volleys Fired 63 | 2 4 57 Largest 2 | 2 2 2 Hottest 124 | 70 70 124 Shots Fired 121 | 4 8 109 Gun 109 | 4 8 97 Cannon 12 | . . 12 Launcher . | . . . Special . | . . . Kinetic 65 | 2 4 59 Thermal 47 | 2 4 41 Explosive . | . . . Electromagnetic 9 | . . 9 Robot Hit Streak 14 | 3 2 14 Robot Miss Streak 3 | . 2 3 Penetration Max . | . . . Secondary Targets 8 | . . 8 Max Gunslinging Chain 1 | . . 1 Shots Hit Robots 85 | 3 3 79 Core Hits 41 | 1 4 36 Critical Kills . | . . . Critical Parts Destroyed . | . . . Critical Strikes 2 | . . 2 Burn 2 | . . 2 Melee Attacks . | . . . Impact . | . . . Slashing . | . . . Piercing . | . . . Sneak Attacks . | . . . Combat Hostiles . | . . . Follow-up Attacks . | . . . Damage Inflicted 1363 | 42 63 1258 Guns 1178 | 42 63 1073 Cannons 165 | . . 165 Explosions . | . . . Melee . | . . . Ramming 20 | . . 20 Kinetic 577 | 29 38 510 Thermal 597 | 13 25 559 Explosive . | . . . Electromagnetic 169 | . . 169 Impact . | . . . Slashing . | . . . Piercing . | . . . Highest Corruption 3 | . . 3 Average Corruption 3 | . . 3 Corruption Purged . | . . . Corruption Blocked . | . . . Effects 12 | . . 12 Message Errors 2 | . . 2 Matter Fused 5 | . . 5 Heat Flow Errors 2 | . . 2 Data Loss (minor) 2 | . . 2 Data Loss (major) 1 | . . 1 Overload Shots . | . . . Overflow Damage . | . . . Projectiles . | . . . Explosions . | . . . Melee . | . . . Knockbacks . | . . . Impact . | . . . Kinetic . | . . . Secondary . | . . . Self-Inflicted Damage . | . . . Shots . | . . . Rammed 1 | . . 1 Targets Rammed 7 | . . 7 Kicked 6 | . . 6 Crushed . | . . . Highest Temperature 438 | 18 18 438 Average Temperature 127 | 10 10 138 Received Heat Transfer 807 | . 36 771 Effects 2 | . . 2 Shutdowns 1 | . . 1 Energy Bleed 1 | . . 1 Siege Activations . | . . . Robots Corrupted . | . . . Combat Hostiles . | . . . Parts Fried 1 | . . 1 Impact Corruptions . | . . . Robots Melted . | . . . Combat Hostiles . | . . . Parts Melted 1 | . . 1 Heat Transferred 1395 | 37 74 1284 Parts Sabotaged . | . . . Parts Stolen . | . . . Parts Stripped . | . . . Power Chain Reactions . | . . . Missiles Intercepted . | . . . Alert | -11 -10 -9 ------- Run | Scr Mat Mat Peak Influence 367 | 5 18 367 Initial 7 | . 3 7 Average 170 | 2 12 227 Maximum Alert Level 1 | . . 1 Low Security (%) 55 | 100 100 40 Level 1 44 | . . 59 Level 2 . | . . . Level 3 . | . . . Level 4 . | . . . Level 5 . | . . . High Security . | . . . Max Security . | . . . Squads Dispatched 4 | . 1 3 Investigation 2 | . . 2 Extermination . | . . . Reinforcement 2 | . 1 1 Assault . | . . . Garrison . | . . . Intercept . | . . . Searches Triggered . | . . . Construction Impeded . | . . . Haulers Reinforced . | . . . Active Scanning Responses . | . . . Cargo Convoy Interrupts . | . . . Stealth | -11 -10 -9 --------- Run | Scr Mat Mat Distress Signals 1 | . . 1 Communications Jammed . | . . . Distress Signals . | . . . Times Spotted 40 | . 5 35 Peak Tracking Total 11 | . 4 11 Tactical Retreats 2 | . . 2 Traps | -11 -10 -9 ------- Run | Scr Mat Mat Traps Triggered . | . . . Indirectly . | . . . Trap Hack Attempts . | . . . Triggered . | . . . Disarmed . | . . . Reprogrammed . | . . . Reused . | . . . Traps Extracted . | . . . Installed . | . . . Triggered . | . . . Machines | -11 -10 -9 ---------- Run | Scr Mat Mat Machines Disabled 1 | . . 1 Max in Single Turn 1 | . . 1 Machines Sabotaged . | . . . Garrisons Compromised . | . . . Overloaded Fab Kills . | . . . Hacking | -11 -10 -9 --------- Run | Scr Mat Mat Machines Accessed 4 | . 2 2 Terminals 4 | . 2 2 Fabricators . | . . . Repair Stations . | . . . Recycling Units . | . . . Scanalyzers . | . . . Garrison Access . | . . . Total Hacks 18 | . 11 7 Successful 8 | . 6 2 Failed 10 | . 5 5 Catastrophic 3 | . 1 2 Database Lockouts . | . . . Manual 12 | . 7 5 Terminals 18 | . 11 7 Fabricators . | . . . Repair Stations . | . . . Recycling Units . | . . . Scanalyzers . | . . . Garrison Access . | . . . Terminal Hacks 7 | . 5 2 Record 2 | . 2 . Robot Analysis 1 | . 1 . Alert Level 1 | . . 1 Zone Layout 3 | . 2 1 Fabricator Hacks . | . . . Repair Station Hacks . | . . . Recycling Unit Hacks . | . . . Scanalyzer . | . . . Garrison Access Hacks . | . . . Unauthorized Hacks 1 | . 1 . Terminals 1 | . 1 . Botnet 1 | . 1 . Fabricators . | . . . Repair Stations . | . . . Recycling Units . | . . . Scanalyzers . | . . . Garrison Access . | . . . Data Cores Recovered . | . . . Used . | . . . Hacking Detections 4 | . 2 2 Full Trace Events 4 | . 2 2 Feedback Events . | . . . Feedback Blocked . | . . . Robot Schematics Acquired . | . . . Robots Built . | . . . Authchips . | . . . Time . | . . . Total Robot Build Rating . | . . . Part Schematics Acquired . | . . . Parts Built . | . . . Authchips . | . . . Time . | . . . Total Part Build Rating . | . . . Parts Repaired . | . . . Time . | . . . Parts Recycled . | . . . Recycled Matter . | . . . Retrieved Matter . | . . . Retrieved Components . | . . . Parts Scanalyzed . | . . . Part Schematics Acquired . | . . . Parts Damaged . | . . . Bothacking | -11 -10 -9 ------------ Run | Scr Mat Mat Used RIF Installer . | . . . Robots Hacked . | . . . Non-combat . | . . . Combat . | . . . Robot Hacks Applied . | . . . Relay Couplers Released . | . . . Fabnet Peak Effective % . | . . . Robots Rewired . | . . . Allies Hacked . | . . . Hacks Repelled . | . . . Allies | -11 -10 -9 -------- Run | Scr Mat Mat Total Allies . | . . . Largest Group . | . . . Highest-Rated Group . | . . . Highest-Rated Ally . | . . . Total Orders . | . . . Ally Attacks . | . . . Total Damage . | . . . Kills . | . . . Allies Corrupted . | . . . Allies Melted . | . . . Intel | -11 -10 -9 ------- Run | Scr Mat Mat Robot Analysis Total 1 | . 1 . Derelict Logs Recovered . | . . . Drone Launches . | . . . Drone Recoveries . | . . . Exploration | -11 -10 -9 ------------- Run | Scr Mat Mat Turns Passed 994 | 60 201 733 Spaces Moved 467 | 40 153 274 Core 79 | 11 . 68 Treads . | . . . Legs 388 | 29 153 206 Wheels . | . . . Hover . | . . . Flight . | . . . Fastest Speed 50 | 50 120 120 Average Speed 157 | 102 120 186 Slowest Speed 300 | 190 120 300 Overloaded Moves . | . . . Propulsion Burnouts . | . . . Robots Hopped . | . . . Cave-ins Triggered . | . . . Exploration Rate (%) 21 | 3 34 26 Regions Visited 2 Branch Regions . Pre-discovered Areas . | . . . Known Exits Taken . | . . . Unknown Exits Taken 2 | 1 1 . Scrap Searched . | . . . Spaces Dug . | . . . Terrain Destroyed . | . . . Melee . | . . . Projectile . | . . . AOE . | . . . Terrain Rammed . | . . . Walls Destroyed . | . . . Machines Disabled . | . . . Actions | -11 -10 -9 --------- Run | Scr Mat Mat Total 600 | 55 163 382 Wait 7 | . . 7 Move 465 | 39 152 274 Hop . | . . . Pick Up 27 | 8 5 14 Fast Attach . | . . . Attach 20 | 6 1 13 Detach 1 | . . 1 Swap 6 | . . 6 Drop 4 | . 1 3 Fire 63 | 2 4 57 Melee . | . . . Ram 1 | . . 1 Kick 6 | . . 6 Crush . | . . . Escape Stasis . | . . . Rewire . | . . . Trap . | . . . Miscellaneous . | . . . Route ------- -11/Scrapyard -10/Materials -9/Materials History --------- Turn | Location | Event 11 | -11/Scrapyard | Discovered new exit (range 15) 61 | -11/Scrapyard | Entered Materials 133 | -10/Materials | Discovered new exit (range 15) 262 | -10/Materials | Entered another Materials area 262 | -9/Materials | Evolved 2 slots: Utility x2 302 | -9/Materials | Build established: Mutant 445 | -9/Materials | Destroyed 10 combat bots 479 | -9/Materials | Lost 7 parts (1p2n4w) 828 | -9/Materials | Core integrity fell below 50% 883 | -9/Materials | Lost 4 parts (1p1n2u) 962 | -9/Materials | Core integrity fell below 20% 990 | -9/Materials | Lost 3 parts (1n2w) 995 | -9/Materials | Destroyed by Y-45 Defender with Heavy Assault Rifle Last Messages --------------- 00899_ U-05 Engineer lays Concrete. 00917_ System corrupted: Component data lost. 00919_ W-16 Scout sends out distress signal. 00923_ Slammed into K-01 Serf. 00923_ Destabilizing: System interference. 00923_ Imp. Medium Laser temporarily disabled. 00923_ Lgt. Assault Rifle temporarily disabled. 00952_ Lgt. Assault Rifle destroyed. 00954_ C-30 ARC bursts open, deploying its payload. 00954_ G-47 Trooper unfolds itself. 00954_ G-34 Mercenary unfolds itself. 00956_ Imp. Medium Laser destroyed. 00957_ K-01 Serf collects debris. 00959_ Aluminum Leg destroyed. 00960_ K-01 Serf collects debris. 00966_ System corrupted: Component data lost. 00975_ Acquired EM Shotgun. 00992_ JS&P6C:Y%YTGSX>JTVSVT83V 00992_ Sml. Laser destroyed. 00994_ K-01 Serf destroyed. Map ----- +----------------------------------------------------+ | | | | | | | | | | | | | ??????????????????????????????????????????? | | ??????????????????????????????????????????? | | ??????????????????????????????????????????? | | ??????????????????????????????????????????? | | ??????????????????????????????????????????? | | ??????????????????????????????????????????? | | ??????????????????????????????????????????? | | ??????????????????????????????????????????? | | ??????????????????????????????????????????? | | ??????????????????????????????????????????? | | ??????????????????????????????????????????? | | ??????????????????????????????????????????? | | ??????????????????????????????????????????? | | ??????????????????????????????????????????? | | ??????????????????????????????????????????? | | ?????????????????????#????????????????????? | | ????????##########?? #????????????????????? | | ????????# [ ### ###??????????????????? | | ????????# """ # #######????????????? | | ????????# "R" #@ k????????? | | ????????# " " + Y * Y ????????? | | ????????# # =%! t ????????? | | ????????# """ # ####### ?????????? | | ????????# """ ## ##??????????????????? | | ????????# """ #? #???????? #???????? | | ????????# #? #???????# #???????? | | ????????#+######### +???????# #???????? | | ????????# % #???????# #???????? | | ??????### #???????# #???????? | | ?????# #???????# #???????? | | ?????# ##+###/#########???????# #???????? | | ?????#??# #???????????# #???????? | | ????????# #???????????# #???????? | | ????????# #???????????# +???????? | | ????????# #???????????# #???????? | | ????????# #???????????# #???????? | | ????????# ^ #??????????## ##??????? | | ????????# ############ ######## | | ????????# + | | ????????############### ###### | | ??????????????????????# #????# | | ??????????????????????+ #????# ######## | | ??????????????????????# #????###+#### | | ??????????????????????# #???????????# """ | +----------------------------------------------------+ Best States ------------- Heat Dissipation 28 Energy Generation 10 Energy Capacity 250 Matter Stores 450 Matter Capacity 450 Sight Range 16 Terrain Scan Density 10 Armor Coverage 150 Evasion (%) 55 Item Schematics ----------------- None Robot Schematics ------------------ None Fabricated ------------ Nothing Alien Tech Used ----------------- None Achievements -------------- None Challenges ------------ None Game ------ Seed PlasmaPhysicsGravjet Manual? 0 Play Time 00:13:29 Cumulative 40.4 hours Start 2022.09.05 @ 00:29:38 End 2022.09.05 @ 00:42:19 Sessions 1 Manual Loads 0 Difficulty Rogue Special Mode None Game No. 94 Rogue 94 Adventurer 0 Explorer 0 Win Type - Total 0 Types 0/0/0/0/0/0/0/0/0 Lore% 26 Gallery% 25 Achievement% 23 Wizard Run 0 Options --------- ASCII 0 Keyboard 0 Movement Numpad Keybinds 0 Fullscreen 1 Font 12/Smallcaps Map View 83x54 Tactical HUD 1 Map Filters NONE Filters NONE Steam 1 RUN: d42b3c8e-382f-4922-8c88-6fc0cef8b573